[Event "Elitserien Allsvenskan 2017-18"]
[Site "Lund"]
[Date "2017.10.21"]
[Round "2"]
[White "Helgason, Reynir"]
[Black "Engqvist, Thomas"]
[Result "1-0"]
[ECO "E30"]
[WhiteElo "2294"]
[BlackElo "2352"]
[Annotator "NA"]
[PlyCount "151"]
[EventDate "2017.??.??"]
[EventCountry "SWE"]
[SourceTitle "playchess.com"]
[Source "ChessBase"]
[SourceQuality "1"]
[TimeControl "40/5400+30:1800+30"]

1. d4 {[%emt 0:00:00]} Nf6 {[%emt 0:01:16]} 2. c4 {[%emt 0:00:08]} e6 {[%emt 0:00:20]} 3. Nc3 {[%emt 0:00:09]} Bb4 {[%emt 0:00:16]} 4. Bg5 {[%emt 0:00:53]} h6 {[%emt 0:00:22]} 5. Bh4 {[%emt 0:00:08]} c5 {[%emt 0:01:07]} 6. d5 {[%emt 0:00:08]} b5 {[%emt 0:03:17]} 7. cxb5 {[%emt 0:40:21]} a6 {[%emt 0:12:10]} 8. a3 {[%emt 0:13:50]} Bxc3+ {[%emt 0:10:48]} 9. bxc3 {[%emt 0:00:06]} axb5 {[%emt 0:02:36]} 10. dxe6 {[%emt 0:05:55]} fxe6 {[%emt 0:00:05]} 11. e3 {[%emt 0:00:25]} O-O {[%emt 0:18:00]} 12. Bxb5 {[%emt 0:08:12]} Qa5 {[%emt 0:00:33]} 13. Bxf6 {[%emt 0:13:20]} Qxb5 {[%emt 0:05:14]} 14. Be7 {[%emt 0:00:57]} Ba6 {[%emt 0:07:27]} 15. Ne2 {[%emt 0:00:48]} Rf7 {[%emt 0:03:22]} 16. Bd6 {[%emt 0:00:16]} Nc6 {[%emt 0:02:48]} 17. Ra2 {[%emt 0:02:01]} Na5 {[%emt 0:01:34]} 18. f3 {[%emt 0:04:27]} Nc4 {[%emt 0:02:40]} 19. Kf2 {[%emt 0:00:23]} e5 {[%emt 0:12:32]} 20. Qd5 {[%emt 0:02:53]} Rc8 {[%emt 0:00:05]} 21. Ng3 {[%emt 0:02:52]} Bb7 {[%emt 0:02:34]} 22. Qd1 {[%emt 0:00:56]} Rf6 {[%emt 0:05:49]} 23. Rd2 {[%emt 0:00:44]} Nxd2 {[%emt 0:02:55]} 24. Qxd2 {[%emt 0:00:01]} Re8 {[%emt 0:00:38]} 25. Qa2+ {[%emt 0:00:48]} Kh8 {[%emt 0:00:38]} 26. Rb1 {[%emt 0:00:07]} Qc6 {[%emt 0:01:43]} 27. Bxc5 {[%emt 0:00:05]} Qxc5 {[%emt 0:00:51]} 28. Rxb7 {[%emt 0:00:05]} Qc6 {[%emt 0:00:10]} 29. Qb2 {[%emt 0:00:27]} Rff8 {[%emt 0:00:30]} 30. Rb6 {[%emt 0:01:08]} Qd5 {[%emt 0:00:22]} 31. Rb5 {[%emt 0:00:27]} Qd3 {[%emt 0:00:16]} 32. e4 {[%emt 0:00:27]} Rc8 {[%emt 0:00:18]} 33. Rd5 {[%emt 0:01:19]} Qc4 {[%emt 0:00:18]} 34. Rxe5 {[%emt 0:00:27]} Rb8 {[%emt 0:00:04]} 35. Qd2 {[%emt 0:00:50]} Rb1 {[%emt 0:00:35]} 36. Ne2 {[%emt 0:00:23]} Rfb8 {[%emt 0:00:03]} 37. Qxd7 {[%emt 0:00:38]} R1b2 {[%emt 0:00:34]} 38. Qd1 {[%emt 0:01:03]} Qxc3 {[%emt 0:00:21]} 39. Rd5 {[%emt 0:00:19]} Qc7 {[%emt 0:02:34]} 40. h3 {[%emt 0:00:31]} Qb6+ {[%emt 0:31:40]} 41. Qd4 {[%emt 0:05:55]} Qa6 {[%emt 0:00:00]} 42. Qd3 {[%emt 0:00:27]} Qf6 {[%emt 0:00:00]} 43. Kg3 {[%emt 0:05:00]} Qe7 {[%emt 0:00:00]} 44. Nf4 {[%emt 0:02:41]} Kg8 {[%emt 0:00:00]} 45. h4 {[%emt 0:00:46]} Rb1 {[%emt 0:00:00]} 46. e5 {[%emt 0:05:46]} Qc7 {[%emt 0:00:00]} 47. Ng6 {[%emt 0:05:24]} R1b2 {[%emt 0:00:00]} 48. Rd7 {[%emt 0:02:26]} Qb6 {[%emt 0:00:00]} 49. Nf4 {[%emt 0:01:08]} Qf2+ {[%emt 0:00:00]} 50. Kg4 {[%emt 0:01:04]} Qb6 {[%emt 0:00:00]} 51. Qd5+ {[%emt 0:01:10]} Kh8 {[%emt 0:00:00]} 52. h5 {[%emt 0:00:38]} Qe3 {[%emt 0:00:00]} 53. e6 {[%emt 0:01:19]} R2b5 {[%emt 0:03:12]} 54. Rd8+ {[%emt 0:01:59]} Kh7 {[%emt 0:01:34]} 55. Qd3+ {[%emt 0:00:26]} Qxd3 {[%emt 0:00:11]} 56. Rxd3 {[%emt 0:00:02]} Rg5+ {[%emt 0:01:20]} 57. Kh4 {[%emt 0:00:15]} Re5 {[%emt 0:01:33]} 58. g4 {[%emt 0:00:11]} Ra8 {[%emt 0:01:23]} 59. Kg3 {[%emt 0:00:30]} Kg8 {[%emt 0:00:06]} 60. Nd5 {[%emt 0:01:54]} Kf8 {[%emt 0:01:03]} 61. e7+ {[%emt 0:00:45]} Rxe7 {[%emt 0:00:39]} 62. Nxe7 {[%emt 0:00:05]} Kxe7 {[%emt 0:00:03]} 63. Kf4 {[%emt 0:00:07]} Ra4+ {[%emt 0:00:57]} 64. Kf5 {[%emt 0:00:15]} Ra5+ {[%emt 0:00:05]} 65. Ke4 {[%emt 0:00:16]} Ke6 {[%emt 0:00:15]} 66. Kd4 {[%emt 0:00:10]} Ra4+ {[%emt 0:00:20]} 67. Kc5 {[%emt 0:00:07]} Ke5 {[%emt 0:00:04]} 68. Kb5 {[%emt 0:00:25]} Rf4 {[%emt 0:00:18]} 69. a4 {[%emt 0:00:07]} g6 {[%emt 0:00:31]} 70. hxg6 {[%emt 0:00:05]} Rf6 {[%emt 0:00:03]} 71. g7 {[%emt 0:00:30]} Rg6 {[%emt 0:00:05]} 72. Rd7 {[%emt 0:00:23]} Kf4 {[%emt 0:00:43]} 73. Rf7+ {[%emt 0:00:08]} Ke5 {[%emt 0:00:25]} 74. a5 {[%emt 0:00:05]} Ke6 {[%emt 0:00:04]} 75. Rc7 {[%emt 0:00:05]} Kd5 {[%emt 0:00:14]} 76. a6 {[%emt 0:00:14]} 1-0

[Event "Elitserien Allsvenskan 2017-18"]
[Site "Lund"]
[Date "2017.10.21"]
[Round "2"]
[White "Ong, Kezli"]
[Black "Henriksson, Johan"]
[Result "1-0"]
[ECO "B16"]
[WhiteElo "2291"]
[BlackElo "2292"]
[Annotator "NA"]
[PlyCount "53"]
[EventDate "2017.??.??"]
[EventCountry "SWE"]
[SourceTitle "playchess.com"]
[Source "ChessBase"]
[SourceQuality "1"]
[TimeControl "40/5400+30:1800+30"]

1. e4 {[%emt 0:00:00]} c6 2. d4 {[%emt 0:00:00]} d5 {[%emt 0:00:06]} 3. Nc3 {[%emt 0:00:14]} dxe4 {[%emt 0:00:03]} 4. Nxe4 {[%emt 0:00:07]} Nf6 {[%emt 0:00:00]} 5. Nxf6+ $11 gxf6 {[%emt 0:00:00]} 6. c3 {[%emt 0:01:43]} Qd5 {[%emt 0:11:38]} 7. Be3 {[%emt 0:19:48]} Bf5 {[%emt 0:05:33]} 8. Nf3 {[%emt 0:15:11]} Nd7 {[%emt 0:05:09]} 9. g3 {[%emt 0:08:40]} O-O-O {[%emt 0:09:56]} 10. Bg2 {[%emt 0:03:37]} Qb5 {[%emt 0:08:20]} 11. Nh4 {[%emt 0:16:09]} Bd3 12. Qd2 e6 {[%emt 0:09:58]} 13. Rd1 {[%emt 0:08:07]} Bc4 {[%emt 0:04:41]} 14. b3 {[%emt 0:03:41]} Bd5 {[%emt 0:00:04]} 15. c4 {[%emt 0:01:04]} Qb6 {[%emt 0:01:58]} 16. O-O {[%emt 0:00:17]} Bxg2 {[%emt 0:00:52]} 17. Nxg2 {[%emt 0:00:20]} Qb4 {[%emt 0:00:41]} 18. Qc2 {[%emt 0:02:03]} Kb8 {[%emt 0:09:37]} 19. a3 {[%emt 0:06:59]} Qxa3 {[%emt 0:03:07]} 20. Bf4+ {[%emt 0:02:10]} Ka8 {[%emt 0:04:36]} 21. Ra1 {[%emt 0:00:14]} Qe7 {[%emt 0:03:18]} 22. Rxa7+ {[%emt 0:04:07]} Kxa7 {[%emt 0:00:04]} 23. Ra1+ Kb6 24. Qa2 {[%emt 0:01:47]} Qa3 {[%emt 0:00:17]} 25. c5+ {[%emt 0:00:26]} Bxc5 {[%emt 0:00:07]} 26. dxc5+ {[%emt 0:00:08]} Qxc5 {[%emt 0:00:02]} 27. Qa7+ {[%emt 0:00:21]} 1-0

[Event "Elitserien Allsvenskan 2017-18"]
[Site "Lund"]
[Date "2017.10.21"]
[Round "2"]
[White "Andersson, Fredrik"]
[Black "Namini, Armin"]
[Result "1/2-1/2"]
[ECO "E94"]
[WhiteElo "2286"]
[BlackElo "2180"]
[Annotator "NA"]
[PlyCount "45"]
[EventDate "2017.??.??"]
[EventCountry "SWE"]
[SourceTitle "playchess.com"]
[Source "ChessBase"]
[SourceQuality "1"]
[TimeControl "40/5400+30:1800+30"]

1. d4 {[%emt 0:00:00]} Nf6 {[%emt 0:00:09]} 2. c4 {[%emt 0:00:00]} g6 {[%emt 0:00:04]} 3. Nc3 {[%emt 0:00:00]} Bg7 {[%emt 0:00:04]} 4. e4 {[%emt 0:00:00]} d6 {[%emt 0:00:04]} 5. Nf3 {[%emt 0:00:01]} O-O {[%emt 0:00:05]} 6. Be2 {[%emt 0:00:08]} e5 {[%emt 0:00:05]} 7. O-O {[%emt 0:00:11]} Na6 $14 {[%emt 0:00:04] LiveBook: 4157 Partien} 8. Re1 {[%emt 0:04:25]} c6 {[%emt 0:00:55]} 9. Bf1 {[%emt 0:03:49]} Bg4 {[%emt 0:01:17]} 10. d5 {[%emt 0:07:33]} Ne8 {[%emt 0:00:18]} 11. Be2 {[%emt 0:06:20]} Bd7 {[%emt 0:05:04]} 12. Rb1 {[%emt 0:10:39]} c5 {[%emt 0:00:31]} 13. a3 {[%emt 0:01:13]} f5 {[%emt 0:05:12]} 14. b4 {[%emt 0:03:31]} Nf6 {[%emt 0:01:05]} 15. Ng5 {[%emt 0:12:13]} b6 {[%emt 0:11:51]} 16. Nb5 {[%emt 0:12:54]} Qe7 {[%emt 0:07:53]} 17. Bf3 {[%emt 0:04:56]} Rfc8 {[%emt 0:10:20]} 18. Qd3 {[%emt 0:09:13]} Nc7 {[%emt 0:10:59]} 19. Nxc7 {[%emt 0:06:44]} Rxc7 {[%emt 0:00:07]} 20. Bd2 {[%emt 0:07:38]} h6 {[%emt 0:06:34]} 21. Ne6 {[%emt 0:00:23]} Bxe6 {[%emt 0:00:05]} 22. dxe6 {[%emt 0:00:03]} f4 {[%emt 0:00:32]} 23. Bxf4 {[%emt 0:01:48]} 1/2-1/2

[Event "Elitserien Allsvenskan 2017-18"]
[Site "Lund"]
[Date "2017.10.21"]
[Round "2"]
[White "Vernersson, Per"]
[Black "Lissang, Christopher"]
[Result "1-0"]
[ECO "E11"]
[WhiteElo "2278"]
[BlackElo "2344"]
[Annotator "ChessBase"]
[PlyCount "20"]
[EventDate "2017.??.??"]
[EventCountry "SWE"]
[SourceTitle "playchess.com"]
[Source "ChessBase"]
[SourceQuality "1"]
[TimeControl "40/5400+30:1800+30"]

1. d4 {[%emt 0:00:00]} Nf6 {[%emt 0:04:46]} 2. c4 {[%emt 0:00:00]} e6 {[%emt 0:00:14]} 3. Nf3 {[%emt 0:01:15]} Bb4+ {[%emt 0:00:46]} 4. Nbd2 {[%emt 0:00:30]} b6 5. a3 {[%emt 0:00:40]} Bxd2+ {[%emt 0:05:33]} 6. Bxd2 {[%emt 0:01:48]} Bb7 {[%emt 0:00:09]} 7. Bg5 {[%emt 0:00:58]} d6 {[%emt 0:00:21]} 8. e3 {[%emt 0:01:36]} Nbd7 {[%emt 0:00:08]} 9. Bd3 {[%emt 0:01:06]} h6 {[%emt 0:00:18]} 10. Bxf6 {[%emt 0:01:06]} Nxf6 {[%emt 0:01:35]} 1-0

[Event "Elitserien Allsvenskan 2017-18"]
[Site "Lund"]
[Date "2017.10.21"]
[Round "2"]
[White "Malesevic, Nedeljko"]
[Black "Cederstam Barsk, Carl"]
[Result "0-1"]
[ECO "D02"]
[WhiteElo "2251"]
[BlackElo "2319"]
[Annotator "ChessBase"]
[PlyCount "24"]
[EventDate "2017.??.??"]
[EventCountry "SWE"]
[SourceTitle "playchess.com"]
[Source "ChessBase"]
[SourceQuality "1"]
[TimeControl "40/5400+30:1800+30"]

1. d4 {[%emt 0:00:00]} d5 {[%emt 0:02:37]} 2. Nf3 {[%emt 0:00:00]} Nf6 {[%emt 0:00:06]} 3. c4 {[%emt 0:00:00]} e6 {[%emt 0:00:05]} 4. cxd5 {[%emt 0:00:59]} exd5 {[%emt 0:00:07]} 5. Bg5 {[%emt 0:00:11]} c6 {[%emt 0:00:38]} 6. Nc3 {[%emt 0:00:53]} Be7 {[%emt 0:00:10]} 7. Qc2 {[%emt 0:00:14]} Nbd7 {[%emt 0:00:11]} 8. e3 {[%emt 0:01:11]} h6 {[%emt 0:00:08]} 9. Bh4 {[%emt 0:01:12]} Nh5 {[%emt 0:00:11]} 10. Bxe7 {[%emt 0:01:52]} Qxe7 {[%emt 0:00:02]} 11. Be2 {[%emt 0:01:10]} Nhf6 {[%emt 0:07:04]} 12. O-O {[%emt 0:04:11]} O-O {[%emt 0:01:03]} 0-1

[Event "Elitserien Allsvenskan 2017-18"]
[Site "Lund"]
[Date "2017.10.21"]
[Round "2"]
[White "Sittenfeld, Johan"]
[Black "Dragicevic, Drazen"]
[Result "0-1"]
[ECO "D82"]
[WhiteElo "2167"]
[BlackElo "2349"]
[Annotator "NA"]
[PlyCount "114"]
[EventDate "2017.??.??"]
[EventCountry "SWE"]
[SourceTitle "playchess.com"]
[Source "ChessBase"]
[SourceQuality "1"]
[TimeControl "40/5400+30:1800+30"]

1. d4 {[%emt 0:00:00]} Nf6 {[%emt 0:02:36]} 2. c4 g6 {[%emt 0:01:36]} 3. Nc3 {[%emt 0:00:14]} d5 {[%emt 0:00:14]} 4. Bf4 {[%emt 0:01:36]} Bg7 {[%emt 0:04:18]} 5. e3 c5 {[%emt 0:01:10]} 6. dxc5 {[%emt 0:03:18]} Qa5 7. Qa4+ {[%emt 0:08:59]} Qxa4 {[%emt 0:02:10]} 8. Nxa4 {[%emt 0:16:32]} Na6 {[%emt 0:50:02]} 9. Nc3 {[%emt 0:11:45]} Ne4 10. Rc1 {[%emt 0:00:15]} Nxc3 {[%emt 0:02:12]} 11. bxc3 dxc4 {[%emt 0:02:00]} 12. Bxc4 {[%emt 0:04:27]} Nxc5 {[%emt 0:01:52]} 13. Nf3 {[%emt 0:01:42]} O-O {[%emt 0:02:21]} 14. O-O {[%emt 0:10:32]} Ne4 {[%emt 0:02:13]} 15. Be5 {[%emt 0:00:09]} Bxe5 {[%emt 0:00:32]} 16. Nxe5 {[%emt 0:01:33]} Nd2 17. Rfd1 Nxc4 {[%emt 0:01:11]} 18. Nxc4 {[%emt 0:00:39]} Be6 {[%emt 0:07:44]} 19. Na5 {[%emt 0:10:55]} Rfc8 {[%emt 0:05:08]} 20. h3 {[%emt 0:04:13]} Rc7 {[%emt 0:00:32]} 21. Nb3 {[%emt 0:01:31]} Rac8 {[%emt 0:04:42]} 22. Nd4 {[%emt 0:09:17]} Bc4 {[%emt 0:00:57]} 23. Rd2 {[%emt 0:01:26]} Ba6 24. Ne2 Bxe2 {[%emt 0:00:53]} 25. Rxe2 {[%emt 0:00:35]} Rxc3 {[%emt 0:00:00]} 26. Rxc3 {[%emt 0:00:38]} Rxc3 27. Rd2 {[%emt 0:02:41]} Rc7 {[%emt 0:00:34]} 28. Kf1 {[%emt 0:02:02]} f6 {[%emt 0:00:49]} 29. Ke2 {[%emt 0:00:57]} Kf7 {[%emt 0:01:44]} 30. h4 {[%emt 0:00:29]} Ke6 {[%emt 0:01:41]} 31. g3 {[%emt 0:00:53]} b6 {[%emt 0:01:19]} 32. Kf3 {[%emt 0:03:23]} Rc8 {[%emt 0:01:50]} 33. Rd3 {[%emt 0:01:04]} Rc5 {[%emt 0:00:52]} 34. a3 {[%emt 0:00:16]} Rf5+ {[%emt 0:00:51]} 35. Ke2 {[%emt 0:01:37]} Ra5 {[%emt 0:02:32]} 36. e4 {[%emt 0:00:22]} Ra4 {[%emt 0:00:28]} 37. Ke3 {[%emt 0:01:04]} Rc4 {[%emt 0:00:32]} 38. f3 {[%emt 0:01:28]} h5 {[%emt 0:01:08]} 39. Kd2 {[%emt 0:00:44]} Rc5 {[%emt 0:00:38]} 40. Ke3 {[%emt 0:00:00]} Rc2 {[%emt 0:03:23]} 41. f4 {[%emt 0:04:24]} Rc4 {[%emt 0:03:38]} 42. Kf3 {[%emt 0:02:32]} b5 {[%emt 0:02:52]} 43. Ke3 {[%emt 0:03:06]} Ra4 {[%emt 0:01:14]} 44. Rb3 {[%emt 0:05:16]} a6 {[%emt 0:04:12]} 45. Kf3 {[%emt 0:00:51]} Kd6 {[%emt 0:04:52]} 46. Re3 {[%emt 0:02:30]} a5 {[%emt 0:03:55]} 47. Ke2 {[%emt 0:01:18]} e5 {[%emt 0:01:24]} 48. Kd2 {[%emt 0:01:01]} Rd4+ {[%emt 0:01:24]} 49. Kc2 {[%emt 0:01:44]} Kc5 {[%emt 0:01:12]} 50. Kb2 Rc4 {[%emt 0:00:24]} 51. Re2 {[%emt 0:04:00]} Kd4 52. f5 gxf5 {[%emt 0:01:20]} 53. exf5 {[%emt 0:01:42]} e4 {[%emt 0:00:10]} 54. Rd2+ {[%emt 0:01:13]} Ke5 {[%emt 0:01:56]} 55. Rd8 Kxf5 56. Rd5+ {[%emt 0:01:47]} Kg4 {[%emt 0:00:38]} 57. Rxb5 e3 {[%emt 0:00:05]} 0-1

[Event "Elitserien Allsvenskan 2017-18"]
[Site "Lund"]
[Date "2017.10.21"]
[Round "2"]
[White "Svensson, Mans"]
[Black "Jogstad, Martin"]
[Result "0-1"]
[ECO "D11"]
[WhiteElo "2166"]
[BlackElo "2283"]
[Annotator "NA"]
[PlyCount "90"]
[EventDate "2017.??.??"]
[EventCountry "SWE"]
[SourceTitle "playchess.com"]
[Source "ChessBase"]
[SourceQuality "1"]
[TimeControl "40/5400+30:1800+30"]

1. d4 {[%emt 0:00:00]} d5 {[%emt 0:00:28]} 2. c4 {[%emt 0:00:00]} c6 {[%emt 0:00:06]} 3. Nf3 {[%emt 0:00:00]} Nf6 {[%emt 0:00:08]} 4. Qc2 {[%emt 0:00:00]} dxc4 $11 {[%emt 0:00:05]} 5. e4 {[%emt 0:00:45]} b5 {[%emt 0:00:09]} 6. b3 {[%emt 0:00:15]} cxb3 {[%emt 0:00:13]} 7. axb3 {[%emt 0:00:08]} e6 {[%emt 0:00:19]} 8. Bd2 {[%emt 0:00:17]} a5 {[%emt 0:00:13]} 9. Bd3 {[%emt 0:00:56]} Bb7 {[%emt 0:00:20]} 10. O-O {[%emt 0:00:29]} Be7 {[%emt 0:00:16]} 11. Nc3 {[%emt 0:05:29]} Na6 {[%emt 0:00:46]} 12. e5 {[%emt 0:04:05]} Nb4 {[%emt 0:06:30]} 13. exf6 {[%emt 0:08:53]} Nxc2 {[%emt 0:00:34]} 14. fxe7 {[%emt 0:00:04]} Qxe7 {[%emt 0:03:01]} 15. Bxc2 {[%emt 0:00:09]} O-O {[%emt 0:28:19]} 16. Ne4 {[%emt 0:02:35]} Qc7 {[%emt 0:08:40]} 17. Nc5 {[%emt 0:03:39]} Ra7 {[%emt 0:13:26]} 18. Rfc1 {[%emt 0:07:39]} Bc8 {[%emt 0:03:16]} 19. Be4 {[%emt 0:05:12]} f6 {[%emt 0:01:12]} 20. Nd3 {[%emt 0:06:40]} Bd7 {[%emt 0:05:15]} 21. Bf4 {[%emt 0:11:13]} Qc8 {[%emt 0:00:36]} 22. Nb4 {[%emt 0:03:04]} Qb7 {[%emt 0:11:22]} 23. Nxc6 {[%emt 0:20:33]} Bxc6 {[%emt 0:00:32]} 24. Bxc6 {[%emt 0:00:08]} Qa6 {[%emt 0:01:29]} 25. Rc5 {[%emt 0:02:36]} b4 {[%emt 0:03:57]} 26. Bb5 {[%emt 0:01:12]} Qb6 {[%emt 0:01:01]} 27. Bc4 {[%emt 0:02:51]} Re8 {[%emt 0:03:45]} 28. Rb5 {[%emt 0:01:22]} Qd8 {[%emt 0:02:56]} 29. Rb8 {[%emt 0:02:57]} Qe7 {[%emt 0:00:36]} 30. Rb6 {[%emt 0:03:37]} Qd8 {[%emt 0:05:13]} 31. Rxe6 {[%emt 0:00:37]} Rxe6 {[%emt 0:00:26]} 32. Bxe6+ {[%emt 0:00:08]} Kf8 {[%emt 0:00:35]} 33. Rc1 {[%emt 0:01:13]} g5 {[%emt 0:00:07]} 34. Be3 {[%emt 0:01:33]} Rc7 {[%emt 0:00:26]} 35. Rd1 {[%emt 0:00:36]} Rc6 {[%emt 0:00:22]} 36. Bf5 {[%emt 0:00:44]} Qd5 {[%emt 0:00:15]} 37. Bxh7 {[%emt 0:02:58]} Qxb3 {[%emt 0:00:02]} 38. Re1 {[%emt 0:00:17]} a4 {[%emt 0:00:42]} 39. Be4 {[%emt 0:03:33]} Re6 {[%emt 0:00:46]} 40. Bf5 {[%emt 0:00:44]} Re8 {[%emt 0:31:15]} 41. Rb1 {[%emt 0:15:43]} Rxe3 {[%emt 0:00:00]} 42. fxe3 {[%emt 0:02:16]} Qxe3+ {[%emt 0:00:00]} 43. Kh1 {[%emt 0:10:29]} a3 {[%emt 0:00:00]} 44. Rxb4 {[%emt 0:02:00]} a2 {[%emt 0:00:00]} 45. Rb8+ {[%emt 0:00:12]} Qe8 {[%emt 0:00:00]} 0-1

[Event "Elitserien Allsvenskan 2017-18"]
[Site "Lund"]
[Date "2017.10.21"]
[Round "2"]
[White "Jaderberg, Bjorn"]
[Black "Glimbrant, Torbjorn"]
[Result "1/2-1/2"]
[ECO "A05"]
[WhiteElo "2151"]
[BlackElo "2268"]
[Annotator "NA"]
[PlyCount "32"]
[EventDate "2017.??.??"]
[EventCountry "SWE"]
[SourceTitle "playchess.com"]
[Source "ChessBase"]
[SourceQuality "1"]
[TimeControl "40/5400+30:1800+30"]

1. Nf3 {[%emt 0:00:00]} Nf6 {[%emt 0:02:04]} 2. b3 {[%emt 0:00:00]} d5 {[%emt 0:03:31]} 3. Bb2 {[%emt 0:00:15]} e6 {[%emt 0:00:33]} 4. g3 {[%emt 0:01:13]} c5 {[%emt 0:00:34]} 5. Bg2 {[%emt 0:00:24]} Nc6 {[%emt 0:00:54]} 6. O-O {[%emt 0:00:28]} Be7 {[%emt 0:01:03]} 7. e3 {[%emt 0:05:52]} O-O {[%emt 0:01:23]} 8. d3 {[%emt 0:00:35]} b6 {[%emt 0:04:10]} 9. Nbd2 {[%emt 0:09:01]} Qc7 {[%emt 0:05:54]} 10. c4 {[%emt 0:00:59]} Bb7 {[%emt 0:02:59]} 11. Qe2 {[%emt 0:01:19]} Rad8 {[%emt 0:04:34]} 12. Rfd1 {[%emt 0:01:45]} Rfe8 {[%emt 0:13:17]} 13. d4 {[%emt 0:04:57]} dxc4 {[%emt 0:16:41]} 14. Nxc4 {[%emt 0:02:35]} cxd4 {[%emt 0:01:32]} 15. Nxd4 {[%emt 0:01:01]} Nxd4 {[%emt 0:01:10]} 16. Bxd4 {[%emt 0:00:31]} Bxg2 {[%emt 0:01:55]} 1/2-1/2

[Event "Elitserien Allsvenskan 2017-18"]
[Site "Lund"]
[Date "2017.10.22"]
[Round "3"]
[White "Lindgren, Philip"]
[Black "Johansson, Carl Fredrik"]
[Result "1-0"]
[ECO "A48"]
[WhiteElo "2380"]
[BlackElo "2217"]
[Annotator "NA"]
[PlyCount "67"]
[EventDate "2017.??.??"]
[EventCountry "SWE"]
[SourceTitle "playchess.com"]
[Source "ChessBase"]
[SourceQuality "1"]
[TimeControl "40/5400+30:1800+30"]

1. Nf3 {[%emt 0:00:00]} Nf6 {[%emt 0:04:56]} 2. d4 {[%emt 0:01:44]} g6 {[%emt 0:02:57]} 3. c4 {[%emt 0:02:38]} Bg7 {[%emt 0:00:08]} 4. Nc3 {[%emt 0:00:32]} O-O {[%emt 0:00:15]} 5. Bg5 {[%emt 0:03:13]} c5 {[%emt 0:03:18]} 6. d5 {[%emt 0:00:40]} h6 {[%emt 0:02:33]} 7. Bh4 {[%emt 0:00:40] LiveBook: 139 Games} d6 {[%emt 0:01:52]} 8. e3 {[%emt 0:00:51]} a6 {[%emt 0:06:06]} 9. Nd2 {[%emt 0:01:57] E61: King's Indian: Early deviations for White, including Smyslov System} Nbd7 {[%emt 0:02:59]} (9... e6 10. a4 exd5 11. cxd5 Nbd7 12. Be2 Qe7 13. O-O Ne5 14. h3 g5 15. Bg3 Bf5 {½-½ (45) Hansen,S (2590)-Van Kampen,R (2643) Germany 2016}) 10. a4 {[%emt 0:01:59]} Qa5 {[%emt 0:03:14]} 11. Be2 {[%emt 0:02:31]} Re8 {[%emt 0:03:20]} 12. O-O {[%emt 0:04:42]} e6 $146 {[%emt 0:02:05]} ({Predecessor:} 12... Nf8 13. Qc2 Rb8 14. f4 Ng4 15. Bxg4 Bxg4 16. e4 Bd7 {1-0 (35) Mendez Ataria,E (2400)-Faig,C (2185) Buenos Aires 1998}) 13. Qc2 {[%emt 0:03:58]} e5 {[%emt 0:06:20]} 14. e4 {[%emt 0:07:43]} Qc7 {[%emt 0:06:21]} 15. a5 {[%emt 0:03:41]} b6 {[%emt 0:01:47]} 16. Nb3 $16 {[%emt 0:01:53]} Rb8 {[%emt 0:02:29]} 17. Ra3 {[%emt 0:05:14]} Nf8 {[%emt 0:03:12]} 18. Rfa1 {[%emt 0:08:24]} g5 {[%emt 0:01:15]} 19. Bg3 {[%emt 0:00:19]} Nxe4 {[%emt 0:02:28]} 20. Nxe4 {[%emt 0:02:48]} f5 {[%emt 0:00:11]} 21. axb6 {[%emt 0:03:20]} Rxb6 {[%emt 0:01:05]} 22. h4 {[%emt 0:04:25]} fxe4 {[%emt 0:01:44]} 23. Bh5 {[%emt 0:03:55]} Rd8 {[%emt 0:00:38]} 24. hxg5 {[%emt 0:07:14]} hxg5 {[%emt 0:00:59]} 25. Nd2 {[%emt 0:01:11]} Qb7 {[%emt 0:08:34]} 26. Nxe4 {[%emt 0:05:35]} Rxb2 {[%emt 0:01:15]} 27. Qc1 {[%emt 0:01:46]} Nh7 {[%emt 0:08:12]} 28. Rf3 {[%emt 0:06:12]} g4 {[%emt 0:03:40]} 29. Rf7 {[%emt 0:01:49]} Qb3 {[%emt 0:00:41]} 30. Bg6 {[%emt 0:05:51]} Re2 {[%emt 0:09:48]} 31. Bxh7+ {[%emt 0:02:51]} Kxf7 {[%emt 0:01:32]} 32. Qg5 {[%emt 0:00:19]} Qb6 {[%emt 0:02:54]} 33. Bh4 {[%emt 0:01:06]} Rd7 {[%emt 0:01:59]} 34. Qf5+ {[%emt 0:00:32]} 1-0

[Event "Elitserien Allsvenskan 2017-18"]
[Site "Lund"]
[Date "2017.10.22"]
[Round "3"]
[White "Bejtovic, Jasmin"]
[Black "Namini, Armin"]
[Result "1/2-1/2"]
[ECO "A10"]
[WhiteElo "2358"]
[BlackElo "2180"]
[Annotator "NA"]
[PlyCount "99"]
[EventDate "2017.??.??"]
[EventCountry "SWE"]
[SourceTitle "playchess.com"]
[Source "ChessBase"]
[SourceQuality "1"]
[TimeControl "40/5400+30:1800+30"]

1. c4 {[%emt 0:00:30]} g6 {[%emt 0:00:43]} 2. g3 {[%emt 0:00:17]} Bg7 {[%emt 0:00:05]} 3. Bg2 {[%emt 0:00:07]} Nf6 {[%emt 0:00:05]} 4. Nc3 {[%emt 0:00:06]} O-O {[%emt 0:00:07]} 5. e4 {[%emt 0:00:04]} d6 {[%emt 0:00:20]} 6. Nge2 {[%emt 0:00:24]} c5 {[%emt 0:00:07]} 7. O-O {[%emt 0:00:07]} Nc6 {[%emt 0:00:06]} 8. d3 {[%emt 0:00:23]} a6 {[%emt 0:01:17]} 9. h3 {[%emt 0:00:36]} Rb8 {[%emt 0:01:07]} 10. a4 {[%emt 0:00:22]} Ne8 {[%emt 0:01:23]} 11. Be3 {[%emt 0:00:10]} Nc7 {[%emt 0:02:52]} 12. d4 $15 {[%emt 0:00:12]} (12. b3 {[%emt 0:00:12]}) 12... cxd4 {[%emt 0:00:30]} 13. Nxd4 {[%emt 0:00:30]} Ne6 {[%emt 0:00:30]} 14. Nde2 {[%emt 0:00:30]} Nc5 15. b3 {[%emt 0:06:36]} Qa5 {[%emt 0:06:53]} 16. Bd2 {[%emt 0:19:43]} Qd8 {[%emt 0:09:44]} 17. Kh2 {[%emt 0:08:45]} Bd7 {[%emt 0:03:27]} 18. Rb1 {[%emt 0:19:23]} Nb4 {[%emt 0:00:30]} 19. a5 {[%emt 0:00:30]} b6 {[%emt 0:06:03]} 20. axb6 {[%emt 0:02:22]} Qxb6 {[%emt 0:00:54]} 21. Be3 {[%emt 0:00:55]} Rfc8 {[%emt 0:13:36]} 22. f4 {[%emt 0:05:05]} Qd8 {[%emt 0:06:44]} 23. f5 {[%emt 0:02:10]} a5 {[%emt 0:05:18]} 24. Bd4 {[%emt 0:03:10]} Ncd3 {[%emt 0:02:30]} 25. Bxg7 {[%emt 0:06:52]} Kxg7 {[%emt 0:00:06]} 26. Nf4 {[%emt 0:06:32]} Nxf4 27. Rxf4 {[%emt 0:00:58]} f6 {[%emt 0:09:53]} 28. h4 {[%emt 0:03:15]} a4 {[%emt 0:00:30]} 29. Nxa4 {[%emt 0:00:30]} Bxa4 {[%emt 0:00:30]} 30. bxa4 {[%emt 0:00:30]} Nc6 {[%emt 0:00:30]} 31. Rxb8 {[%emt 0:00:30]} Rxb8 {[%emt 0:11:13]} 32. fxg6 {[%emt 0:09:25]} hxg6 {[%emt 0:00:16]} 33. e5 {[%emt 0:00:47]} Nxe5 {[%emt 0:01:53]} 34. c5 {[%emt 0:00:57]} Rb2 {[%emt 0:01:09]} 35. cxd6 {[%emt 0:00:36]} Qa8 {[%emt 0:04:15]} 36. Qf1 {[%emt 0:00:26]} Nd3 {[%emt 0:07:24]} 37. Rf3 {[%emt 0:01:37]} Ne1 {[%emt 0:00:02]} 38. Rf2 {[%emt 0:00:30]} Rxf2 {[%emt 0:02:37]} 39. Qxf2 {[%emt 0:00:16]} Nxg2 {[%emt 0:00:06]} 40. d7 {[%emt 0:02:35]} Nxh4 41. gxh4 {[%emt 0:02:02]} Qd5 {[%emt 0:04:14]} 42. Qa7 {[%emt 0:02:22]} Qd2+ {[%emt 0:01:30]} 43. Kh3 {[%emt 0:03:33]} Qd3+ {[%emt 0:00:15]} 44. Kg2 {[%emt 0:00:48]} Qd2+ {[%emt 0:00:06]} 45. Kg1 {[%emt 0:01:14]} Qd1+ {[%emt 0:00:07]} 46. Kf2 {[%emt 0:02:13]} Qd2+ {[%emt 0:00:04]} 47. Kf1 {[%emt 0:01:16]} Qd1+ {[%emt 0:00:07]} 48. Kg2 {[%emt 0:00:29]} Qd2+ {[%emt 0:00:04]} 49. Kf1 {[%emt 0:00:46]} Qd1+ {[%emt 0:00:07]} 50. Kg2 {[%emt 0:00:16]} 1/2-1/2